Cogmind - Beta 12 @@@ ROGUE MODE // 2023.04.25 @ 21:20:39 Player: Mr Goldstein Result: Destroyed by Striker with Compact Linear Accelerator Performance ------------- Evolutions (9) 4500 Regions Visited (22) 4400 Robots Destroyed (47) 235 Value Destroyed (897) 897 Prototype IDs (238) 4760 Alien Tech Used (0) 0 Bonus (5502) 5502 TOTAL SCORE: 20294 Bonus ------- Pacifist 200 High Alert Combat Kills 2 Entered Garrisons 200 Used RIF Installer 500 Entered DSFs 1000 Aligned with FarCom 300 Met Data Miner 300 Used Data Conduit 3000 Cogmind --------- Core Integrity 0/1600 Matter 116/300 Energy 100/100 System Corruption 0% Temperature Cool (0) Movement Core (50) Location -1/Command Parts ------- > --- POWER (2) -------- (None) > --- PROPULSION (10) -- (None) > --- UTILITY (10) ----- Advanced Signal Interpreter > --- WEAPON (3) ------- (None) > --- INVENTORY (5) ---- Light Quantum Reactor AWS/Autocannon Peak State ------------ > --- POWER ------------ Light Fission Core > --- PROPULSION ------- Field Propulsion Drive Field Propulsion Drive Field Propulsion Drive Field Propulsion Drive Field Propulsion Drive Field Propulsion Drive > --- UTILITY ---------- Advanced Signal Interpreter Improved Hacking Suite System Guard > --- WEAPON ----------- Heavy Pick > --- INVENTORY -------- AWS/Autocannon [Rating: 64] Favorites ----------- Power Light Nuclear Core Engine Light Deuterium Engine Power Core Light Nuclear Core Reactor Cold Fusion Reactor Propulsion VTOL Module Treads Light Treads Flight Unit VTOL Module Utility System Guard Device Trap Scanner Processor System Guard Hackware Hacking Suite Weapon Heavy Pick Ballistic Gun Heavy Battle Rifle Ballistic Cannon AWS/Autocannon Launcher Missile Launcher Impact Weapon Heavy Hammer Piercing Weapon Heavy Pick Build | -11 -10 -10 -9 -9 -9 -8 -8 -7 -7 -7 -7 -6 -6 -5 -5 -5 -4 -4 -3 -2 -1 -1 ------- Run | Jun Mat Min Mat Min Exi Min Mat Fac Low Low Dat Pro Fac Fac DSF Gar Fac DSF Res Res Acc Com Slots Evolved 18 | . . . 2 . . . 2 2 . . . . 2 2 . . 2 . 2 2 2 . Power 1 | . . . . . . . . . . . . . . . . . 1 . . . . . Propulsion 8 | . . . 1 . . . 1 2 . . . . 1 . . . . . 1 1 1 . Utility 8 | . . . 1 . . . . . . . . . 1 2 . . 1 . 1 1 1 . Weapon 1 | . . . . . . . 1 . . . . . . . . . . . . . . . Parts Attached 72 | 2 . 1 . 4 1 5 11 8 . 1 . 4 20 6 . 1 2 . 1 . . 5 Power 8 | . . . . . . . 2 1 . 1 . 1 1 1 . . . . . . . 1 Engine 2 | . . . . . . . 2 . . . . . . . . . . . . . . . Core 4 | . . . . . . . . 1 . 1 . 1 . 1 . . . . . . . . Reactor 2 | . . . . . . . . . . . . . 1 . . . . . . . . 1 Propulsion 30 | 2 . . . 2 1 1 6 2 . . . 1 8 4 . . 2 . . . . 1 Treads 3 | 2 . . . 1 . . . . . . . . . . . . . . . . . . Leg . | . . . . . . . . . . . . . . . . . . . . . . . Wheel . | . . . . . . . . . . . . . . . . . . . . . . . Hover . | . . . . . . . . . . . . . . . . . . . . . . . Flight 27 | . . . . 1 1 1 6 2 . . . 1 8 4 . . 2 . . . . 1 Utility 11 | . . 1 . . . 1 . 2 . . . . 5 . . . . . 1 . . 1 Device 2 | . . 1 . . . 1 . . . . . . . . . . . . . . . . Storage . | . . . . . . . . . . . . . . . . . . . . . . . Processor 5 | . . . . . . . . 2 . . . . 3 . . . . . . . . . Hackware 4 | . . . . . . . . . . . . . 2 . . . . . 1 . . 1 Protection . | . . . . . . . . . . . . . . . . . . . . . . . Artifact . | . . . . . . . . . . . . . . . . . . . . . . . Weapon 23 | . . . . 2 . 3 3 3 . . . 2 6 1 . 1 . . . . . 2 Energy Gun . | . . . . . . . . . . . . . . . . . . . . . . . Energy Cannon . | . . . . . . . . . . . . . . . . . . . . . . . Ballistic Gun 2 | . . . . 2 . . . . . . . . . . . . . . . . . . Ballistic Cannon 6 | . . . . . . . . 1 . . . 2 1 . . . . . . . . 2 Launcher 6 | . . . . . . 3 2 1 . . . . . . . . . . . . . . Special Weapon . | . . . . . . . . . . . . . . . . . . . . . . . Impact Weapon 5 | . . . . . . . 1 1 . . . . 3 . . . . . . . . . Slashing Weapon . | . . . . . . . . . . . . . . . . . . . . . . . Piercing Weapon 4 | . . . . . . . . . . . . . 2 1 . 1 . . . . . . Special Melee Weapon . | . . . . . . . . . . . . . . . . . . . . . . . Unidentified Prototypes 2 | . . 1 . . . . 1 . . . . . . . . . . . . . . . Corrupted Parts 2 | . . . . . . . . . . . . . 2 . . . . . . . . . System Corruption 17 | . . . . . . . . . . . . . 17 . . . . . . . . . Parts Lost 41 | . . . . 3 . 1 4 1 . 1 . 3 12 . . 3 . . 1 3 . 9 Power 3 | . . . . . . . 1 . . . . 1 . . . . . . . 1 . . Propulsion 27 | . . . . 2 . 1 3 . . 1 . 2 9 . . 2 . . 1 2 . 4 Utility 7 | . . . . . . . . . . . . . 2 . . 1 . . . . . 4 Weapon 4 | . . . . 1 . . . 1 . . . . 1 . . . . . . . . 1 Highest Loss Streak 6 | . . . . 2 . 1 2 1 . 1 . 2 6 . . 2 . . 1 3 . 5 To Critical Strikes . | . . . . . . . . . . . . . . . . . . . . . . . Average Slot Usage (%) 46 | . 28 31 22 16 26 37 46 68 76 73 69 70 54 65 70 65 49 57 50 47 32 17 Core 2 | . . . . . . . . 6 7 7 7 6 1 4 5 5 5 5 4 4 . . Treads 3 | . 28 28 22 7 . . . . . . . . . . . . . . . . . . Flight 21 | . . . . 3 15 19 26 35 46 42 38 38 25 32 35 33 23 31 24 21 12 3 Device 2 | . . 3 . . . 6 9 7 7 7 7 7 1 . . . . . . . . . Processor 7 | . . . . . . . . 11 15 15 15 15 15 11 11 11 10 10 9 8 8 6 Hackware 2 | . . . . . . . . . . . . . 3 11 11 8 5 5 6 8 8 6 Ballistic Gun 1 | . . . . 6 11 11 1 . . . . . . . . . . . . . . . Naked Turns 15 | . . . . 15 . . . . . . . . . . . . . . . . . . Heaviest Build 16 | . . 14 . 4 4 6 10 16 7 7 7 7 15 10 10 10 10 10 10 10 3 3 Greatest Support 42 | 20 3 3 3 20 8 8 20 28 23 23 23 27 26 38 38 38 42 42 42 35 21 21 Greatest Overweight (x) 4 | . . 4 . . . 1 . . . . . . . . . . . . . . . . Average Overweight (x) . | . . . . . . . . . . . . . . . . . . . . . . . Largest Inventory Capacity 5 | 5 5 5 5 5 5 5 5 5 5 5 5 5 5 5 5 5 5 5 5 5 5 5 Average Capacity 5 | 5 5 5 5 5 5 5 5 5 5 5 5 5 5 5 5 5 5 5 5 5 5 5 Most Carried 5 | . 1 3 3 4 5 5 5 5 5 5 4 5 5 5 3 4 3 3 3 3 3 4 Average Carried 3 | . . 1 1 1 3 4 4 4 5 4 4 3 4 3 3 3 3 3 3 3 3 3 Final Capacity 5 | 5 5 5 5 5 5 5 5 5 5 5 5 5 5 5 5 5 5 5 5 5 5 5 Final Carried 5 | . 1 3 1 3 5 5 5 4 5 4 4 5 5 3 3 3 3 3 3 3 3 4 Class Distribution -------------------- 36% | Mutant 34% | Sprinter 15% | Hacker-Sprinter 7% | Scavenger-Sprinter 5% | Hacker-Mutant Dominant Class ---------------- Mutant | -10/Materials Mutant | -10/Mines Mutant | -9/Materials Mutant | -9/Mines Mutant | -9/Exiles Mutant | -8/Mines Sprinter | -8/Materials Sprinter | -7/Factory Sprinter | -7/Lower Caves Sprinter | -7/Lower Caves Sprinter | -7/Data Miner Scavenger-Sprinter | -6/Proximity Caves Sprinter | -6/Factory Hacker-Sprinter | -5/Factory Hacker-Sprinter | -5/DSF Hacker-Sprinter | -5/Garrison Mutant | -4/Factory Sprinter | -4/DSF Sprinter | -3/Research Hacker-Sprinter | -2/Research Hacker-Mutant | -1/Access Hacker-Mutant | -1/Command Resources | -11 -10 -10 -9 -9 -9 -8 -8 -7 -7 -7 -7 -6 -6 -5 -5 -5 -4 -4 -3 -2 -1 -1 ----------- Run | Jun Mat Min Mat Min Exi Min Mat Fac Low Low Dat Pro Fac Fac DSF Gar Fac DSF Res Res Acc Com Matter Collected 720 | 68 . . . 68 . 171 179 21 52 . . 60 98 . . . . . . . . 3 Remotely . | . . . . . . . . . . . . . . . . . . . . . . . Salvage Created 638 | . . . . 82 . 103 254 32 . . . 59 86 . . . . . . . . 22 Parts 64 | . . . . 6 . 13 26 3 . . . 7 9 . . . . . . . . . Haulers Intercepted 2 | . . . . . . . 2 . . . . . . . . . . . . . . . Recyclers Shooed . | . . . . . . . . . . . . . . . . . . . . . . . Parts Field Recycled . | . . . . . . . . . . . . . . . . . . . . . . . Retrieved Matter . | . . . . . . . . . . . . . . . . . . . . . . . Parts Self-Destructed 6 | . . . . . . . . . . . . 6 . . . . . . . . . . Prevented . | . . . . . . . . . . . . . . . . . . . . . . . Kills | -11 -10 -10 -9 -9 -9 -8 -8 -7 -7 -7 -7 -6 -6 -5 -5 -5 -4 -4 -3 -2 -1 -1 ------- Run | Jun Mat Min Mat Min Exi Min Mat Fac Low Low Dat Pro Fac Fac DSF Gar Fac DSF Res Res Acc Com Combat Hostiles Destroyed 36 | . . . . 5 . 7 8 3 . . . 7 5 . . . . . . . . 1 Guns 5 | . . . . 5 . . . . . . . . . . . . . . . . . . Cannons 14 | . . . . . . . . 2 . . . 6 5 . . . . . . . . 1 AOE 16 | . . . . . . 7 8 1 . . . . . . . . . . . . . . Classes Destroyed 10 | . . . . 1 . 1 7 . . . . . 1 . . . . . . . . . Worker 3 | . . . . . . . 3 . . . . . . . . . . . . . . . Builder 1 | . . . . . . . 1 . . . . . . . . . . . . . . . Tunneler 1 | . . . . . . . 1 . . . . . . . . . . . . . . . Hauler 2 | . . . . . . . 2 . . . . . . . . . . . . . . . Recycler 1 | . . . . . . 1 . . . . . . . . . . . . . . . . Operator 1 | . . . . . . . 1 . . . . . . . . . . . . . . . Watcher 2 | . . . . . . . 1 . . . . . 1 . . . . . . . . . Swarmer 30 | . . . . 5 . 7 4 3 . . . 7 3 . . . . . . . . 1 Cutter 2 | . . . . . . . . . . . . . 2 . . . . . . . . . Grunt 4 | . . . . . . . 4 . . . . . . . . . . . . . . . Best Kill Streak 11 | . . . . 3 . 5 11 3 . . . 7 5 . . . . . . . . 1 Combat Bots Only 7 | . . . . 3 . 4 7 3 . . . 7 5 . . . . . . . . 1 Max Kills in Single Turn 6 | . . . . 1 . 3 6 1 . . . 1 1 . . . . . . . . 1 Gunslinging . | . . . . . . . . . . . . . . . . . . . . . . . Exploded 4 | . . . . . . 3 4 1 . . . . . . . . . . . . . . Melee . | . . . . . . . . . . . . . . . . . . . . . . . Uniques/NPCs Destroyed . | . . . . . . . . . . . . . . . . . . . . . . . Combat | -11 -10 -10 -9 -9 -9 -8 -8 -7 -7 -7 -7 -6 -6 -5 -5 -5 -4 -4 -3 -2 -1 -1 -------- Run | Jun Mat Min Mat Min Exi Min Mat Fac Low Low Dat Pro Fac Fac DSF Gar Fac DSF Res Res Acc Com Damage Taken 5259 | . 90 135 . 572 . 60 343 76 75 103 6 371 730 . . 227 . 71 39 111 83 2167 Core 2638 | . 34 14 . 265 . 7 112 . 61 55 6 107 189 . . 65 . 71 . 29 55 1568 Absorbed by Shields . | . . . . . . . . . . . . . . . . . . . . . . . Core Remaining (%) 81 | 100 . 80 . . . 32 79 . . . . 67 77 . . 93 . 93 100 98 . . Volleys Fired 29 | . . . . 13 . 6 8 2 . . . . . . . . . . . . . . Largest 2 | . . . . 1 . 2 1 1 . . . . . . . . . . . . . . Hottest 69 | . . . . 23 . 69 36 36 . . . . . . . . . . . . . . Shots Fired 61 | . . . . 13 . 10 8 4 . . . 13 7 . . . . . . . . 6 Gun 19 | . . . . 13 . 6 . . . . . . . . . . . . . . . . Cannon 28 | . . . . . . . . 2 . . . 13 7 . . . . . . . . 6 Launcher 14 | . . . . . . 4 8 2 . . . . . . . . . . . . . . Special . | . . . . . . . . . . . . . . . . . . . . . . . Kinetic 47 | . . . . 13 . 6 . 2 . . . 13 7 . . . . . . . . 6 Thermal . | . . . . . . . . . . . . . . . . . . . . . . . Explosive 14 | . . . . . . 4 8 2 . . . . . . . . . . . . . . Electromagnetic . | . . . . . . . . . . . . . . . . . . . . . . . Robot Hit Streak 9 | . . . . 2 . 3 2 3 . . . 9 8 . . . . . . . . 9 Robot Miss Streak 10 | . . . . 10 . 3 6 . . . . 1 2 . . . . . . . . . Penetration Max . | . . . . . . . . . . . . . . . . . . . . . . . Secondary Targets . | . . . . . . . . . . . . . . . . . . . . . . . Autonomous 28 | . . . . . . . . 2 . . . 13 7 . . . . . . . . 6 Shots Hit Robots 41 | . . . . 7 . 5 2 2 . . . 12 7 . . . . . . . . 6 Core Hits 52 | . 2 . . 9 . 7 21 3 . . . 5 4 . . . . . . . . 1 Critical Kills . | . . . . . . . . . . . . . . . . . . . . . . . Critical Parts Destroyed . | . . . . . . . . . . . . . . . . . . . . . . . Critical Strikes 1 | . . . . . . . . . . . . 1 . . . . . . . . . . Blast 1 | . . . . . . . . . . . . 1 . . . . . . . . . . Melee Attacks 32 | . . . . . . . 2 4 . . . . 18 2 . 1 2 . 3 . . . Impact 23 | . . . . . . . 2 4 . . . . 17 . . . . . . . . . Slashing . | . . . . . . . . . . . . . . . . . . . . . . . Piercing 9 | . . . . . . . . . . . . . 1 2 . 1 2 . 3 . . . Sneak Attacks . | . . . . . . . . . . . . . . . . . . . . . . . Combat Hostiles . | . . . . . . . . . . . . . . . . . . . . . . . Follow-up Attacks . | . . . . . . . . . . . . . . . . . . . . . . . Damage Inflicted 4611 | . 38 . . 175 . 656 1160 270 . . 12 1106 645 . . . . . . . . 549 Guns 136 | . . . . 87 . 49 . . . . . . . . . . . . . . . . Cannons 2344 | . . . . . . . . 158 . . . 1106 531 . . . . . . . . 549 Explosions 1879 | . . . . . . 607 1160 112 . . . . . . . . . . . . . . Melee 114 | . . . . . . . . . . . . . 114 . . . . . . . . . Ramming 138 | . 38 . . 88 . . . . . . 12 . . . . . . . . . . . Kinetic 2480 | . . . . 87 . 49 . 158 . . . 1106 531 . . . . . . . . 549 Thermal . | . . . . . . . . . . . . . . . . . . . . . . . Explosive 1879 | . . . . . . 607 1160 112 . . . . . . . . . . . . . . Electromagnetic . | . . . . . . . . . . . . . . . . . . . . . . . Impact 114 | . . . . . . . . . . . . . 114 . . . . . . . . . Slashing . | . . . . . . . . . . . . . . . . . . . . . . . Piercing . | . . . . . . . . . . . . . . . . . . . . . . . Highest Corruption 9 | . . . . 7 7 7 . . . . . . 9 . . . . . . . . . Average Corruption 7 | . . . . 6 7 7 . . . . . . 9 . . . . . . . . . Corruption Purged . | . . . . . . . . . . . . . . . . . . . . . . . Corruption Blocked 3 | . . . . . . . . . . . . . . . . . . . . . . 3 Effects 23 | . . . . 8 3 5 . . . . . . 7 . . . . . . . . . Message Errors 6 | . . . . 3 1 . . . . . . . 2 . . . . . . . . . Matter Fused 8 | . . . . 3 2 2 . . . . . . 1 . . . . . . . . . Heat Flow Errors 1 | . . . . . . 1 . . . . . . . . . . . . . . . . Energy Discharges 2 | . . . . 1 . 1 . . . . . . . . . . . . . . . . Parts Rejected 1 | . . . . . . . . . . . . . 1 . . . . . . . . . Data Loss (minor) 4 | . . . . . . 1 . . . . . . 3 . . . . . . . . . Alerts 1 | . . . . 1 . . . . . . . . . . . . . . . . . . Overload Shots . | . . . . . . . . . . . . . . . . . . . . . . . Overflow Damage 595 | . . . . . . 65 69 36 . . . 160 152 . . . . . . . . 113 Projectiles 423 | . . . . . . . . 36 . . . 160 114 . . . . . . . . 113 Explosions 134 | . . . . . . 65 69 . . . . . . . . . . . . . . . Melee 38 | . . . . . . . . . . . . . 38 . . . . . . . . . Knockbacks 14 | . . . . . . . . . . . . 6 3 . . . . . . . . 5 Impact . | . . . . . . . . . . . . . . . . . . . . . . . Kinetic 12 | . . . . . . . . . . . . 5 2 . . . . . . . . 5 Secondary 2 | . . . . . . . . . . . . 1 1 . . . . . . . . . Self-Inflicted Damage 97 | . 18 . . 39 . . 34 . . . 6 . . . . . . . . . . . Shots 1 | . . . . . . . 1 . . . . . . . . . . . . . . . Rammed 34 | . 10 . . 23 . . . . . . 1 . . . . . . . . . . . Targets Rammed 34 | . 10 . . 23 . . . . . . 1 . . . . . . . . . . . Kicked . | . . . . . . . . . . . . . . . . . . . . . . . Crushed . | . . . . . . . . . . . . . . . . . . . . . . . Highest Temperature 153 | . . . . . . 153 . 12 17 10 3 3 96 . . 9 1 . . . . . Average Temperature 24 | . . . . . . 81 . 7 6 5 3 3 45 . . 4 1 . . . . . Received Heat Transfer 282 | . 36 . . . . . 90 . 27 12 . . 24 . . 30 . . . 18 9 36 Siege Activations . | . . . . . . . . . . . . . . . . . . . . . . . Robots Corrupted . | . . . . . . . . . . . . . . . . . . . . . . . Combat Hostiles . | . . . . . . . . . . . . . . . . . . . . . . . Parts Fried 3 | . . . . . . . . . . . . 1 2 . . . . . . . . . Impact Corruptions 5 | . . . . 1 . . . . . . . 2 2 . . . . . . . . . Robots Melted . | . . . . . . . . . . . . . . . . . . . . . . . Combat Hostiles . | . . . . . . . . . . . . . . . . . . . . . . . Parts Melted . | . . . . . . . . . . . . . . . . . . . . . . . Heat Transferred . | . . . . . . . . . . . . . . . . . . . . . . . Parts Sabotaged . | . . . . . . . . . . . . . . . . . . . . . . . Parts Stolen 1 | . . . . . . . . . . 1 . . . . . . . . . . . . Parts Stripped . | . . . . . . . . . . . . . . . . . . . . . . . Power Chain Reactions . | . . . . . . . . . . . . . . . . . . . . . . . Missiles Intercepted . | . . . . . . . . . . . . . . . . . . . . . . . Alert | -11 -10 -10 -9 -9 -9 -8 -8 -7 -7 -7 -7 -6 -6 -5 -5 -5 -4 -4 -3 -2 -1 -1 ------- Run | Jun Mat Min Mat Min Exi Min Mat Fac Low Low Dat Pro Fac Fac DSF Gar Fac DSF Res Res Acc Com Peak Influence 566 | . 15 60 23 331 . 181 566 468 . . . . 394 106 74 135 74 53 98 89 74 260 Initial 256 | . . 5 23 8 . . 70 256 . . . . 138 104 74 55 70 53 29 54 40 47 Average 160 | . 4 36 23 143 . 101 279 337 . . . . 275 105 74 70 71 53 57 60 56 93 Maximum Alert Level 2 | . . . . 1 . . 2 2 . . . . 1 . . . . . . . . 1 Low Security (%) 68 | 100 100 100 100 72 . 100 42 . . . . . 32 100 100 100 100 100 100 100 100 92 Level 1 26 | . . . . 27 . . 28 68 . . . . 67 . . . . . . . . 7 Level 2 4 | . . . . . . . 28 31 . . . . . . . . . . . . . . Level 3 . | . . . . . . . . . . . . . . . . . . . . . . . Level 4 . | . . . . . . . . . . . . . . . . . . . . . . . Level 5 . | . . . . . . . . . . . . . . . . . . . . . . . High Security . | . . . . . . . . . . . . . . . . . . . . . . . Max Security . | . . . . . . . . . . . . . . . . . . . . . . . Squads Dispatched 10 | . . . . . . . 1 2 . . . . 5 . . . . . . . . 2 Investigation 7 | . . . . . . . 1 2 . . . . 3 . . . . . . . . 1 Extermination . | . . . . . . . . . . . . . . . . . . . . . . . Reinforcement 3 | . . . . . . . . . . . . . 2 . . . . . . . . 1 Assault . | . . . . . . . . . . . . . . . . . . . . . . . Garrison . | . . . . . . . . . . . . . . . . . . . . . . . Intercept . | . . . . . . . . . . . . . . . . . . . . . . . Searches Triggered . | . . . . . . . . . . . . . . . . . . . . . . . Construction Impeded . | . . . . . . . . . . . . . . . . . . . . . . . Haulers Reinforced . | . . . . . . . . . . . . . . . . . . . . . . . Active Scanning Responses . | . . . . . . . . . . . . . . . . . . . . . . . Cargo Convoy Interrupts . | . . . . . . . . . . . . . . . . . . . . . . . Stealth | -11 -10 -10 -9 -9 -9 -8 -8 -7 -7 -7 -7 -6 -6 -5 -5 -5 -4 -4 -3 -2 -1 -1 --------- Run | Jun Mat Min Mat Min Exi Min Mat Fac Low Low Dat Pro Fac Fac DSF Gar Fac DSF Res Res Acc Com Distress Signals 12 | . . . . . . . 4 1 . . . . 2 . . . . . 1 1 . 3 Communications Jammed . | . . . . . . . . . . . . . . . . . . . . . . . Distress Signals . | . . . . . . . . . . . . . . . . . . . . . . . Times Spotted 169 | . 5 8 . 24 . 7 23 12 2 2 4 16 20 . 1 12 . . 4 5 2 22 Peak Tracking Total 18 | . 5 6 . 8 . 4 11 7 1 1 4 7 10 . 1 13 . 1 5 6 2 18 Tactical Retreats 28 | . . 2 . 5 . . 3 3 1 . . 1 4 . . 1 . . 2 1 . 5 Traps | -11 -10 -10 -9 -9 -9 -8 -8 -7 -7 -7 -7 -6 -6 -5 -5 -5 -4 -4 -3 -2 -1 -1 ------- Run | Jun Mat Min Mat Min Exi Min Mat Fac Low Low Dat Pro Fac Fac DSF Gar Fac DSF Res Res Acc Com Traps Triggered 6 | . . . . . . . . . . . . . 3 . 1 . . 1 1 . . . Indirectly . | . . . . . . . . . . . . . . . . . . . . . . . Trap Hack Attempts . | . . . . . . . . . . . . . . . . . . . . . . . Triggered . | . . . . . . . . . . . . . . . . . . . . . . . Disarmed . | . . . . . . . . . . . . . . . . . . . . . . . Reprogrammed . | . . . . . . . . . . . . . . . . . . . . . . . Reused . | . . . . . . . . . . . . . . . . . . . . . . . Traps Extracted . | . . . . . . . . . . . . . . . . . . . . . . . Installed . | . . . . . . . . . . . . . . . . . . . . . . . Triggered 2 | . . 1 . . . . . . 1 . . . . . . . . . . . . . Machines | -11 -10 -10 -9 -9 -9 -8 -8 -7 -7 -7 -7 -6 -6 -5 -5 -5 -4 -4 -3 -2 -1 -1 ---------- Run | Jun Mat Min Mat Min Exi Min Mat Fac Low Low Dat Pro Fac Fac DSF Gar Fac DSF Res Res Acc Com Machines Disabled 3 | . . . . . . . 1 1 . . . . 1 . . . . . . . . . Max in Single Turn 1 | . . . . . . . 1 1 . . . . 1 . . . . . . . . . Garrison Access 2 | . . . . . . . 1 . . . . . . . . . 1 . . . . . Phase Generator 1 | . . . . . . . . . . . . . . . . . . . . . . 1 Machines Repaired . | . . . . . . . . . . . . . . . . . . . . . . . Machines Sabotaged . | . . . . . . . . . . . . . . . . . . . . . . . Overloaded Fab Kills . | . . . . . . . . . . . . . . . . . . . . . . . Hacking | -11 -10 -10 -9 -9 -9 -8 -8 -7 -7 -7 -7 -6 -6 -5 -5 -5 -4 -4 -3 -2 -1 -1 --------- Run | Jun Mat Min Mat Min Exi Min Mat Fac Low Low Dat Pro Fac Fac DSF Gar Fac DSF Res Res Acc Com Machines Accessed 38 | . 3 1 1 1 1 . 5 4 1 . . . 9 2 . 1 2 . 2 . 3 2 Terminals 31 | . 3 . 1 1 . . 4 3 . . . . 8 2 . 1 1 . 2 . 3 2 Fabricators 1 | . . . . . . . . 1 . . . . . . . . . . . . . . Repair Stations . | . . . . . . . . . . . . . . . . . . . . . . . Recycling Units . | . . . . . . . . . . . . . . . . . . . . . . . Scanalyzers . | . . . . . . . . . . . . . . . . . . . . . . . Garrison Access 3 | . . . . . . . 1 . . . . . 1 . . . 1 . . . . . Total Hacks 72 | . 12 1 2 1 1 . 9 8 1 . . . 16 3 . 2 2 . 5 . 5 4 Successful 29 | . 1 1 2 1 1 . 2 1 1 . . . 6 2 . 1 2 . 3 . 3 2 Failed 43 | . 11 . . . . . 7 7 . . . . 10 1 . 1 . . 2 . 2 2 Catastrophic 15 | . 3 . . . . . 1 6 . . . . 3 . . 1 . . . . . 1 Database Lockouts . | . . . . . . . . . . . . . . . . . . . . . . . Manual 35 | . 10 . 2 1 1 . 2 4 . . . . 10 . . . . . 5 . . . Terminals 64 | . 12 . 2 1 . . 8 7 . . . . 14 3 . 2 1 . 5 . 5 4 Fabricators 1 | . . . . . . . . 1 . . . . . . . . . . . . . . Repair Stations . | . . . . . . . . . . . . . . . . . . . . . . . Recycling Units . | . . . . . . . . . . . . . . . . . . . . . . . Scanalyzers . | . . . . . . . . . . . . . . . . . . . . . . . Garrison Access 4 | . . . . . . . 1 . . . . . 2 . . . 1 . . . . . Terminal Hacks 23 | . 1 1 1 1 1 . 1 1 1 . . . 4 2 . 1 1 . 2 . 3 2 Open Door 5 | . . 1 . . . . . . 1 . . . . . . . . . . . 3 . Open DSF 2 | . . . . . . . . . . . . . . 1 . . 1 . . . . . Level Access Points 2 | . . . . . . . . . . . . . . . . . . . 1 . . 1 Branch Access Points 3 | . . . . . . . . 1 . . . . 1 . . . . . 1 . . . Emergency Access Points 1 | . . . . . . . . . . . . . 1 . . . . . . . . . Registered Components 1 | . . . 1 . . . . . . . . . . . . . . . . . . . Zone Layout 6 | . 1 . . 1 . . 1 . . . . . 2 1 . . . . . . . . Garrison Registry 1 | . . . . . . . . . . . . . . . . 1 . . . . . . EX-Prototype ID Bank 1 | . . . . . 1 . . . . . . . . . . . . . . . . . Disengage Seal 1 | . . . . . . . . . . . . . . . . . . . . . . 1 Fabricator Hacks . | . . . . . . . . . . . . . . . . . . . . . . . Repair Station Hacks . | . . . . . . . . . . . . . . . . . . . . . . . Recycling Unit Hacks . | . . . . . . . . . . . . . . . . . . . . . . . Scanalyzer . | . . . . . . . . . . . . . . . . . . . . . . . Garrison Access Hacks 2 | . . . . . . . 1 . . . . . . . . . 1 . . . . . Seal Access 2 | . . . . . . . 1 . . . . . . . . . 1 . . . . . Unauthorized Hacks 4 | . . . 1 . . . . . . . . . 2 . . . . . 1 . . . Terminals 4 | . . . 1 . . . . . . . . . 2 . . . . . 1 . . . Botnet 4 | . . . 1 . . . . . . . . . 2 . . . . . 1 . . . Fabricators . | . . . . . . . . . . . . . . . . . . . . . . . Repair Stations . | . . . . . . . . . . . . . . . . . . . . . . . Recycling Units . | . . . . . . . . . . . . . . . . . . . . . . . Scanalyzers . | . . . . . . . . . . . . . . . . . . . . . . . Garrison Access . | . . . . . . . . . . . . . . . . . . . . . . . Data Cores Recovered . | . . . . . . . . . . . . . . . . . . . . . . . Used . | . . . . . . . . . . . . . . . . . . . . . . . Hacking Detections 27 | . 3 . . . . . 4 4 . . . . 8 2 . 1 . . 2 . 1 2 Full Trace Events 11 | . 2 . . . . . 2 2 . . . . 3 . . 1 . . . . . 1 Feedback Events . | . . . . . . . . . . . . . . . . . . . . . . . Feedback Blocked . | . . . . . . . . . . . . . . . . . . . . . . . Robot Schematics Acquired . | . . . . . . . . . . . . . . . . . . . . . . . Robots Built . | . . . . . . . . . . . . . . . . . . . . . . . Authchips . | . . . . . . . . . . . . . . . . . . . . . . . Time . | . . . . . . . . . . . . . . . . . . . . . . . Total Robot Build Rating . | . . . . . . . . . . . . . . . . . . . . . . . Part Schematics Acquired . | . . . . . . . . . . . . . . . . . . . . . . . Parts Built . | . . . . . . . . . . . . . . . . . . . . . . . Authchips . | . . . . . . . . . . . . . . . . . . . . . . . Time . | . . . . . . . . . . . . . . . . . . . . . . . Total Part Build Rating . | . . . . . . . . . . . . . . . . . . . . . . . Parts Repaired . | . . . . . . . . . . . . . . . . . . . . . . . Time . | . . . . . . . . . . . . . . . . . . . . . . . Parts Recycled . | . . . . . . . . . . . . . . . . . . . . . . . Recycled Matter . | . . . . . . . . . . . . . . . . . . . . . . . Retrieved Matter . | . . . . . . . . . . . . . . . . . . . . . . . Retrieved Components . | . . . . . . . . . . . . . . . . . . . . . . . Parts Scanalyzed . | . . . . . . . . . . . . . . . . . . . . . . . Part Schematics Acquired . | . . . . . . . . . . . . . . . . . . . . . . . Parts Damaged . | . . . . . . . . . . . . . . . . . . . . . . . Bothacking | -11 -10 -10 -9 -9 -9 -8 -8 -7 -7 -7 -7 -6 -6 -5 -5 -5 -4 -4 -3 -2 -1 -1 ------------ Run | Jun Mat Min Mat Min Exi Min Mat Fac Low Low Dat Pro Fac Fac DSF Gar Fac DSF Res Res Acc Com Used RIF Installer 1 | . . . . . . . . . . . . . . . . 1 . . . . . . Robots Hacked . | . . . . . . . . . . . . . . . . . . . . . . . Non-combat . | . . . . . . . . . . . . . . . . . . . . . . . Combat . | . . . . . . . . . . . . . . . . . . . . . . . Robot Hacks Applied . | . . . . . . . . . . . . . . . . . . . . . . . Relay Couplers Released . | . . . . . . . . . . . . . . . . . . . . . . . Fabnet Peak Effective % . | . . . . . . . . . . . . . . . . . . . . . . . Robots Rewired . | . . . . . . . . . . . . . . . . . . . . . . . Allies Hacked . | . . . . . . . . . . . . . . . . . . . . . . . Hacks Repelled . | . . . . . . . . . . . . . . . . . . . . . . . Allies | -11 -10 -10 -9 -9 -9 -8 -8 -7 -7 -7 -7 -6 -6 -5 -5 -5 -4 -4 -3 -2 -1 -1 -------- Run | Jun Mat Min Mat Min Exi Min Mat Fac Low Low Dat Pro Fac Fac DSF Gar Fac DSF Res Res Acc Com Total Allies . | . . . . . . . . . . . . . . . . . . . . . . . Largest Group . | . . . . . . . . . . . . . . . . . . . . . . . Highest-Rated Group . | . . . . . . . . . . . . . . . . . . . . . . . Highest-Rated Ally . | . . . . . . . . . . . . . . . . . . . . . . . Total Orders 1 | . . 1 . . . . . . . . . . . . . . . . . . . . ROAM 1 | . . 1 . . . . . . . . . . . . . . . . . . . . Ally Attacks . | . . . . . . . . . . . . . . . . . . . . . . . Total Damage . | . . . . . . . . . . . . . . . . . . . . . . . Kills . | . . . . . . . . . . . . . . . . . . . . . . . Allies Corrupted . | . . . . . . . . . . . . . . . . . . . . . . . Allies Melted . | . . . . . . . . . . . . . . . . . . . . . . . Intel | -11 -10 -10 -9 -9 -9 -8 -8 -7 -7 -7 -7 -6 -6 -5 -5 -5 -4 -4 -3 -2 -1 -1 ------- Run | Jun Mat Min Mat Min Exi Min Mat Fac Low Low Dat Pro Fac Fac DSF Gar Fac DSF Res Res Acc Com Robot Analysis Total 131 | . . . . . . . . . . . 131 . . . . . . . . . . . Derelict Logs Recovered 4 | . . 1 . 1 . . . . 1 . . 1 . . . . . . . . . . Drone Launches 1 | . . 1 . . . . . . . . . . . . . . . . . . . . Drone Recoveries . | . . . . . . . . . . . . . . . . . . . . . . . Exploration | -11 -10 -10 -9 -9 -9 -8 -8 -7 -7 -7 -7 -6 -6 -5 -5 -5 -4 -4 -3 -2 -1 -1 ------------- Run | Jun Mat Min Mat Min Exi Min Mat Fac Low Low Dat Pro Fac Fac DSF Gar Fac DSF Res Res Acc Com Turns Passed 2567 | 15 60 147 42 334 84 146 174 185 115 56 17 95 441 113 22 175 43 9 68 25 59 142 Spaces Moved 5700 | 21 98 236 82 502 212 296 379 547 453 214 62 236 1135 74 72 280 100 30 171 74 149 277 Core 838 | 20 98 236 82 287 . . . . . . . . . . . . . . . . . 115 Treads 2 | 1 . . . 1 . . . . . . . . . . . . . . . . . . Legs . | . . . . . . . . . . . . . . . . . . . . . . . Wheels . | . . . . . . . . . . . . . . . . . . . . . . . Hover . | . . . . . . . . . . . . . . . . . . . . . . . Flight 4860 | . . . . 214 212 296 379 547 453 214 62 236 1135 74 72 280 100 30 171 74 149 162 Fastest Speed 17 | 50 50 50 50 40 37 37 29 22 25 25 26 22 17 27 27 27 30 30 30 33 39 39 Average Speed 34 | 55 50 61 50 47 38 40 32 27 25 25 26 25 27 30 27 28 33 30 32 33 39 44 Slowest Speed 250 | 160 50 250 50 160 40 120 40 34 25 26 26 28 34 34 27 36 36 30 33 39 39 50 Overloaded Moves . | . . . . . . . . . . . . . . . . . . . . . . . Propulsion Burnouts . | . . . . . . . . . . . . . . . . . . . . . . . Robots Hopped 50 | . . . . 6 . 5 8 . . . 4 1 17 . . 3 . . 3 . 1 2 Cave-ins Triggered . | . . . . . . . . . . . . . . . . . . . . . . . Exploration Rate (%) 37 | 3 26 76 14 95 62 75 45 19 65 53 64 50 41 3 52 41 5 34 9 3 6 16 Regions Visited 22 Branch Regions 9 Pre-discovered Areas 25 | . . . . . . . . . . . 25 . . . . . . . . . . . Known Exits Taken 7 | . . . . . . . . 1 . . . . 1 1 . . 1 . 1 1 1 . Unknown Exits Taken 12 | 1 1 1 1 1 1 1 1 . 1 1 1 1 . . . . . . . . . . Scrap Searched 9 | . . . . 2 . 3 . . 2 1 . 1 . . . . . . . . . . Spaces Dug 26 | . . . . . . . 2 4 . . . . 14 1 . . 2 . 3 . . . Terrain Destroyed 164 | . . . . . . 43 90 10 . . . 1 14 1 . . 2 . 3 . . . Melee 26 | . . . . . . . 2 4 . . . . 14 1 . . 2 . 3 . . . Projectile 1 | . . . . . . . . . . . . 1 . . . . . . . . . . AOE 137 | . . . . . . 43 88 6 . . . . . . . . . . . . . . Terrain Rammed . | . . . . . . . . . . . . . . . . . . . . . . . Walls Destroyed . | . . . . . . . . . . . . . . . . . . . . . . . Machines Disabled . | . . . . . . . . . . . . . . . . . . . . . . . Actions | -11 -10 -10 -9 -9 -9 -8 -8 -7 -7 -7 -7 -6 -6 -5 -5 -5 -4 -4 -3 -2 -1 -1 --------- Run | Jun Mat Min Mat Min Exi Min Mat Fac Low Low Dat Pro Fac Fac DSF Gar Fac DSF Res Res Acc Com Total 6162 | 22 108 238 82 576 213 306 406 571 455 214 58 268 1230 157 73 366 103 29 173 73 148 293 Wait 281 | . . 1 . 36 . . 9 8 . . . 27 22 76 . 91 . . . . 1 10 Move 5579 | 20 97 235 81 489 211 286 362 546 452 213 54 233 1102 73 71 270 99 29 164 73 146 273 Hop 45 | . . . . 6 . 4 8 . . . 3 1 15 . . 2 . . 3 . 1 2 Pick Up 16 | . 1 . . 4 1 1 1 1 1 . . 1 5 . . . . . . . . . Fast Attach 44 | 2 . 1 . 2 . 3 6 4 . . . 2 14 4 . . 2 . 1 . . 3 Attach 26 | . . . . 2 1 2 4 4 . 1 . 2 5 2 . 1 . . . . . 2 Detach 20 | . . 1 . . . 2 3 2 1 . . 2 5 . . 1 . . . . . 3 Swap 2 | . . . . . . . 1 . . . . . 1 . . . . . . . . . Drop 14 | . . . 1 1 . 2 2 . 1 . . . 7 . . . . . . . . . Fire 29 | . . . . 13 . 6 8 2 . . . . . . . . . . . . . . Melee 32 | . . . . . . . 2 4 . . . . 18 2 . 1 2 . 3 . . . Ram 34 | . 10 . . 23 . . . . . . 1 . . . . . . . . . . . Kick . | . . . . . . . . . . . . . . . . . . . . . . . Crush . | . . . . . . . . . . . . . . . . . . . . . . . Escape Stasis 40 | . . . . . . . . . . . . . 36 . 2 . . . 2 . . . Rewire . | . . . . . . . . . . . . . . . . . . . . . . . Trap . | . . . . . . . . . . . . . . . . . . . . . . . Miscellaneous . | . . . . . . . . . . . . . . . . . . . . . . . Route ------- -11/Junkyard -10/Materials -10/Mines -9/Materials -9/Mines (discovered 3 exits: *Mat x2 / *Exi) -9/Exiles -8/Mines -8/Materials -7/Factory (discovered 4 exits: *Sto x2 / *Low x2) -7/Lower Caves -7/Lower Caves -7/Data Miner -6/Proximity Caves -6/Factory (discovered 5 exits: *Fac x3 / *Low x2) -5/Factory -5/DSF -5/Garrison (discovered 3 exits: *Fac x3) -4/Factory -4/DSF -3/Research (discovered 6 exits: *Res x3 / Arm / Tes x2) -2/Research -1/Access -1/Command (discovered 2 exits: Sur x2) History --------- Turn | Location | Event 4 | -11/Junkyard | Discovered new exit (range 16) 16 | -11/Junkyard | Entered Materials 38 | -10/Materials | Discovered new exit (range 10) 76 | -10/Materials | Entered Mines 87 | -10/Mines | Met a Derelict bent on vengeance 182 | -10/Mines | Discovered new exit (range 14) 185 | -10/Mines | Found the Drone Emporium 187 | -10/Mines | Found Prototype Device 187 | -10/Mines | Identified Decoy Drone Bay 223 | -10/Mines | Entered Materials 223 | -9/Materials | Evolved 2 slots: Propulsion x1, Utility x1 253 | -9/Materials | Discovered new exit (range 12) 265 | -9/Materials | Entered Mines 308 | -9/Mines | Build established: Mutant 369 | -9/Mines | Received a Rocket Launcher from a helpful Derelict 443 | -9/Mines | Learned Materials non-interactive machine intel 460 | -9/Mines | Discovered new exit (range 5) 476 | -9/Mines | Discovered new exit (range 17) 487 | -9/Mines | Assembled infested the area 503 | -9/Mines | Core integrity fell below 50% 575 | -9/Mines | A weapon hastily lodged in a ceiling crevice suddenly fell to the ground 597 | -9/Mines | Deemed a non-threat by the Exiles lab entrance 597 | -9/Mines | Discovered new exit (range 5) 599 | -9/Mines | Entered Exiles 610 | -9/Exiles | Met 8R-AWN 616 | -9/Exiles | Met EX-HEX 627 | -9/Exiles | Met EX-BIN 632 | -9/Exiles | Aligned with FarCom system 633 | -9/Exiles | Given EX-Vault access code 643 | -9/Exiles | Opened EX-Vault 647 | -9/Exiles | Found AWS/Autocannon 656 | -9/Exiles | Warned to stay clear of 0b10 Research branches 666 | -9/Exiles | Met EX-DEC 679 | -9/Exiles | Discovered new exit (range 14) 683 | -9/Exiles | Left Exiles lab with AWS/Autocannon 683 | -9/Exiles | Entered Mines 823 | -8/Mines | Discovered new exit (range 16) 829 | -8/Mines | Entered Materials 829 | -8/Materials | Evolved 2 slots: Propulsion x1, Weapon x1 830 | -8/Materials | Loaded intel: 37 non-interactive machine locations 926 | -8/Materials | Destroyed 7 combat bots 1001 | -8/Materials | Discovered new exit (range 10) 1003 | -8/Materials | Entered Factory 1003 | -7/Factory | Evolved 2 slots: Propulsion x2 1004 | -7/Factory | Identified exit to Storage 1129 | -7/Factory | Identified exit to Lower Caves 1141 | -7/Factory | Build established: Sprinter 1188 | -7/Factory | Entered Lower Caves 1196 | -7/Lower Caves | Learned 8 Factory zone layouts 1300 | -7/Lower Caves | Discovered new exit (range 10) 1303 | -7/Lower Caves | Entered another Lower Caves area 1333 | -7/Lower Caves | Spotted B-75 Beast 1355 | -7/Lower Caves | Discovered new exit (range 16) 1359 | -7/Lower Caves | Encountered a Warlord checkpoint 1359 | -7/Lower Caves | Entered Data Miner 1359 | -7/Data Miner | Discovered new exit (range 7) 1364 | -7/Data Miner | Met Data Miner 1369 | -7/Data Miner | Interfaced with the Data Conduit 1376 | -7/Data Miner | Entered Proximity Caves 1389 | -6/Proximity Caves | Learned Factory interactive machine intel 1452 | -6/Proximity Caves | Destroyed 7 combat bots 1468 | -6/Proximity Caves | Discovered new exit (range 12) 1471 | -6/Proximity Caves | Entered Factory 1471 | -6/Factory | Evolved 2 slots: Propulsion x1, Utility x1 1472 | -6/Factory | Identified exit to Factory 1473 | -6/Factory | Loaded intel: 232 machine locations 1474 | -6/Factory | Loaded intel: 51 interactive machine locations 1562 | -6/Factory | Spotted B-75 Beast 1607 | -6/Factory | Discovered new exit (range 8) 1683 | -6/Factory | Lost 6 parts (4n1u1w) 1721 | -6/Factory | Identified exit to Lower Caves 1912 | -6/Factory | Entered another Factory area 1912 | -5/Factory | Evolved 2 slots: Utility x2 1913 | -5/Factory | Loaded intel: 236 machine locations 1931 | -5/Factory | Lost 4 parts (3n1u) 2025 | -5/Factory | Identified exit to DSF 2025 | -5/Factory | Entered DSF 2026 | -5/DSF | Loaded intel: 4 machine locations 2029 | -5/DSF | Discovered new exit (range 16) 2033 | -5/DSF | Identified exit to Garrison 2045 | -5/DSF | Additional patrols routed to DSF 2047 | -5/DSF | Entered Garrison 2048 | -5/Garrison | Loaded intel: 29 machine locations 2107 | -5/Garrison | Build established: Hacker-Sprinter 2148 | -5/Garrison | Spotted B-75 Beast 2160 | -5/Garrison | Discovered new exit (range 10) 2162 | -5/Garrison | Identified exit to Factory 2162 | -5/Garrison | Attempted to access garrison exit controls, blocked by remote lockdown 2166 | -5/Garrison | Discovered exit to Factory (range 60) 2166 | -5/Garrison | Discovered exit to Factory (range 91) 2166 | -5/Garrison | Discovered exit to Factory (range 14) 2175 | -5/Garrison | Installed Relay Interface Framework 2205 | -5/Garrison | Triggered checkpoint 2222 | -5/Garrison | Entered Factory 2222 | -4/Factory | Evolved 2 slots: Power x1, Utility x1 2223 | -4/Factory | Loaded intel: 266 machine locations 2265 | -4/Factory | Identified exit to DSF 2265 | -4/Factory | Entered DSF 2266 | -4/DSF | Loaded intel: 4 machine locations 2271 | -4/DSF | Discovered new exit (range 11) 2274 | -4/DSF | Identified exit to Research 2274 | -4/DSF | Entered Research 2274 | -3/Research | Evolved 2 slots: Propulsion x1, Utility x1 2275 | -3/Research | Loaded intel: 107 machine locations 2333 | -3/Research | Identified exit to Armory 2333 | -3/Research | Identified exit to Testing 2333 | -3/Research | Identified exit to Research 2342 | -3/Research | Entered another Research area 2342 | -2/Research | Evolved 2 slots: Propulsion x1, Utility x1 2343 | -2/Research | Loaded intel: 117 machine locations 2362 | -2/Research | Discovered new exit (range 16) 2367 | -2/Research | Identified exit to Access 2367 | -2/Research | Entered Access 2367 | -1/Access | Evolved 2 slots: Propulsion x1, Utility x1 2368 | -1/Access | Loaded intel: 105 machine locations 2374 | -1/Access | Spotted B-99 Colossus 2397 | -1/Access | Lost 3 parts (1p2n) 2423 | -1/Access | Discovered new exit (range 8) 2426 | -1/Access | Identified exit to Command 2426 | -1/Access | Entered Command 2427 | -1/Command | Loaded intel: 60 machine locations 2442 | -1/Command | Disengaged cave seal 2445 | -1/Command | Identified exit to Surface 2460 | -1/Command | Phase Generator disabled 2503 | -1/Command | Lost 5 parts (3n1u1w) 2511 | -1/Command | Core integrity fell below 50% 2554 | -1/Command | Spotted B-99 Colossus 2556 | -1/Command | Core integrity fell below 20% 2557 | -1/Command | Lost 3 parts (1n2u) 2564 | -1/Command | Spotted Striker 2568 | -1/Command | Destroyed by Striker with Compact Linear Accelerator Last Messages --------------- 02511_ Penetrated by Slug. 02516_ Nuclear Pulse Array destroyed. 02518_ System Guard destroyed. 02526_ S-43 Plague knocked back. 02526_ Hacking Suite destroyed. 02527_ Destroyed Lgt. Antimatter Reactor. 02527_ S-43 Plague knocked back. 02529_ Destroyed Hvy. Machine Gun. 02529_ S-43 Plague knocked back. 02533_ Destroyed Xenon Bombardment Thruster. 02533_ S-43 Plague knocked back. 02536_ Acquired 3 matter. 02539_ Slug penetrates Wall. 02539_ Penetrated by Slug. 02549_ S-43 Plague destroyed. 02555_ W-44 Eye sends out distress signal. 02555_ Slug penetrates Wall. 02559_ Penetrated by Slug. 02563_ Hacking Suite destroyed. 02563_ Penetrated by Slug. Map ----- +----------------------------------------------------+ | | | | | | | | | | | | | | | | | | | | | | | ???????????????????????????????####?????#####????? | | ??????????????????????????????# ????? ????? | | ??????????????????????????????# ????[[ #???? | | ??????????????????"""Y"""?????# ???s?! #???? | | ??????????????????"""""""?????# ??????! #???? | | ??????????????????????????????# ??????? ????? | | ??????????????????????????????# ???????? ????? | | ??????????????????????#########""#+########+###### | | ???????????????????? % | | ???????????????????????????# ############### | | ????????????????????######## " #? | | ????????????????????# # # #? | | ????????????????????# == # !!!# #? | | ????????????????????# == # !w!# #? | | ????????????????????# ==%@ # !! " #? | | ????????????????????# + s# ## | | ????????????????????# ; # # | | ????????????????????#######;K # !!! # | | ??????????????????? !! # !! # | | ?????????????????? !! % + !! # | | ?????????????????? ####BB;;### # | | ??????????????????? ????#BB###?# !## | | ??????????????????? ?????####???##############? | | ??????????????????? ????????????????????????????? | | ??????????????????? ?????????????????????????????? | | ?????????????w???????????????????????????????????? | | ?????????????????????????????????????????????????? | | ?????????????????????????????????????????????????? | | ???????????????????????????????????????????????""" | | ?????????????????????????7?????????????????????"?? | | ???????????????????????????????????????????????"?" | | ???????????????????????????????????????????????"?" | | ???????????????????????????????????????????????"?? | | ???????????????????????????????????????????????""" | | ?????????????????????????????????????????????????? | | ????????????????""???????????????????????????????? | | ????????????????""??????""""?????????????????????? | | ????????????????"Y??????""""?????????????????????? | | ????????????????""??????""""?????????????????????? | +----------------------------------------------------+ Best States ------------- Heat Dissipation 52 Energy Generation 18 Energy Capacity 200 Matter Stores 300 Matter Capacity 300 Sight Range 16 Terrain Scan Density 10 Corruption Containment 8 Evasion (%) 66 Melee Accuracy 14 Core Analysis 6 Offensive Hacking 22 Item Schematics ----------------- None Robot Schematics ------------------ None Fabricated ------------ Nothing Alien Tech Used ----------------- None Achievements -------------- None Challenges ------------ None Game ------ Seed CompositeComponentScreen Manual? 0 Play Time 00:55:14 Cumulative 146.3 hours Start 2023.04.25 @ 20:04:23 End 2023.04.25 @ 21:20:39 Sessions 1 Manual Loads 0 Difficulty Rogue Special Mode None Game No. 422 Rogue 422 Adventurer 0 Explorer 0 Win Type - Total 6 Types 5/0/0/1/0/0/0/0/0 Lore% 64 Gallery% 70 Achievement% 60 Wizard Run 0 Options --------- ASCII 0 Keyboard 0 Movement Numpad Keybinds 0 Fullscreen 1 Font 16/SmallcapsGlow Map View 75x55 Tactical HUD 1 Map Filters NONE Filters NONE Steam 1 RUN: c3ce2bc4-7a55-4b72-a252-e08c37604444